bitfinex/quotes_SOLUSD_20251106
["timestamp","ask_amount","ask_price","bid_price","bid_amount"]
[1762423458440,18.9435797,158.73,158.69,6.4015943]
[1762423458736,7.32,158.72,158.69,22.15558005]
[1762423459120,0.72,158.72,158.69,22.15558005]
[1762423459323,7.32,158.71,158.69,22.15558005]
[1762423459529,0.72,158.72,158.69,22.15558005]
[1762423459846,7.32,158.72,158.69,22.15558005]
[1762423460030,0.72,158.74,158.69,22.57558005]
[1762423460533,0.72,158.74,158.69,22.15558005]
[1762423461142,0.72,158.74,158.7,9.78882769]
[1762423461322,7.32,158.73,158.7,9.78882769]
[1762423462043,0.72,158.74,158.71,6.3008002]
[1762423462345,7.32,158.73,158.71,22.0528007]
[1762423462518,7.32,158.74,158.71,22.4728007]
[1762423462845,0.68,158.79,158.72,10.20882769]
[1762423463030,7.32,158.78,158.72,10.20882769]
[1762423463436,0.68,158.77,158.72,10.20882769]
[1762423463633,0.68,158.77,158.72,9.78882769]
[1762423463822,0.68,158.77,158.72,10.20882769]
[1762423464022,0.68,158.77,158.73,22.05002205]
[1762423464222,0.68,158.77,158.73,22.47002205]
[1762423464423,0.68,158.77,158.73,22.05002205]
[1762423465038,7.32,158.77,158.73,6.3000063]
[1762423465234,7.32,158.77,158.73,22.05002205]
[1762423465235,8.0,158.77,158.73,22.05002205]
[1762423466622,0.68,158.77,158.73,22.05002205]
[1762423466924,8.0,158.77,158.73,22.05002205]
[1762423468050,0.68,158.77,158.73,22.05002205]
[1762423468227,20.592,158.79,158.73,29.07002205]
[1762423468421,7.32,158.76,158.73,28.65002205]
[1762423468621,7.32,158.76,158.73,6.6]
[1762423468847,8.0,158.75,158.73,6.6]
[1762423469046,8.0,158.75,158.7,6.30119722]
[1762423469230,0.68,158.74,158.7,6.30119722]
[1762423469431,8.0,158.74,158.7,6.30119722]
[1762423469634,0.68,158.73,158.7,6.30119722]
[1762423469931,0.68,158.73,158.7,22.05419028]
[1762423470327,7.32,158.74,158.71,0.42]
[1762423470524,0.68,158.76,158.71,0.42]
[1762423470742,0.68,158.76,158.7,22.05419028]
[1762423471050,0.68,158.76,158.7,22.47419028]
[1762423471246,7.32,158.75,158.7,22.47419028]
[1762423471583,7.32,158.74,158.7,22.05419028]
[1762423472061,0.68,158.75,158.7,22.47419028]
[1762423472628,7.32,158.74,158.7,22.47419028]
[1762423472958,7.32,158.73,158.7,22.05419028]
[1762423473452,8.0,158.72,158.7,6.30119722]
[1762423473662,7.32,158.71,158.7,6.30119722]
[1762423474157,0.68,158.72,158.7,6.30119722]
[1762423474645,7.32,158.71,158.7,6.30119722]
[1762423475249,0.68,158.73,158.7,6.30119722]
[1762423475969,7.32,158.72,158.7,6.30119722]
[1762423476542,0.68,158.72,158.7,6.30119722]
[1762423477736,7.32,158.71,158.7,6.30119722]
[1762423477943,0.68,158.72,158.7,6.30119722]
[1762423478163,7.32,158.71,158.7,6.30119722]
[1762423478368,0.68,158.72,158.7,6.30119722]
[1762423478975,7.32,158.71,158.7,6.30119722]
[1762423479466,0.68,158.72,158.7,6.30119722]
[1762423479648,7.32,158.71,158.7,6.30119722]
[1762423479848,0.68,158.72,158.7,6.30119722]
[1762423480050,7.32,158.71,158.7,6.30119722]
[1762423480643,0.68,158.72,158.7,6.30119722]
[1762423480853,7.32,158.71,158.7,6.30119722]
[1762423481064,0.68,158.72,158.7,6.30119722]
[1762423481663,7.32,158.71,158.7,6.30119722]
[1762423481975,7.32,158.71,158.69,13.00156721]
[1762423482147,20.592,158.75,158.69,13.00156721]
[1762423482148,8.0,158.7,158.69,0.1]
[1762423482349,0.68,158.7,158.69,0.1]
[1762423482555,8.0,158.7,158.69,0.1]
[1762423482755,0.68,158.7,158.69,0.1]
[1762423483068,8.0,158.7,158.69,0.1]
[1762423483970,0.68,158.7,158.69,0.1]
[1762423484175,8.0,158.7,158.69,0.1]
[1762423484360,0.68,158.7,158.69,0.1]
[1762423484561,8.0,158.7,158.69,0.1]
[1762423485446,0.68,158.7,158.69,0.1]
[1762423485974,8.0,158.7,158.69,0.1]
[1762423486354,0.68,158.7,158.69,0.1]
[1762423486760,8.0,158.7,158.69,0.1]
[1762423487060,21.272,158.73,158.69,6.4015943]
[1762423487249,21.272,158.73,158.69,0.1]
[1762423487250,0.68,158.72,158.69,0.1]
[1762423487774,7.32,158.71,158.69,0.1]
[1762423487948,0.68,158.72,158.69,6.40151155]
[1762423488154,0.68,158.71,158.69,6.40151155]
[1762423488669,7.32,158.7,158.69,6.40151155]
[1762423489650,0.68,158.75,158.69,6.82151155]
[1762423489855,7.32,158.74,158.69,6.82151155]
[1762423490045,7.32,158.74,158.69,22.5754973]
[1762423490253,0.68,158.73,158.69,22.1554973]
[1762423490469,7.32,158.72,158.69,22.1554973]
[1762423490667,0.68,158.73,158.69,22.1554973]
[1762423490972,7.32,158.72,158.69,22.1554973]
[1762423491377,0.68,158.73,158.69,22.1554973]
[1762423491574,7.32,158.72,158.69,22.1554973]
[1762423491785,0.68,158.73,158.69,6.40151155]
[1762423491959,0.68,158.72,158.69,6.40151155]
[1762423492161,7.32,158.71,158.69,6.40151155]
[1762423492555,7.32,158.71,158.65,28.26627328]
[1762423492757,7.32,158.71,158.65,29.86627328]
[1762423493172,0.68,158.72,158.65,29.86627328]
[1762423493776,7.32,158.71,158.65,1.6]
[1762423493984,0.68,158.7,158.65,1.6]
[1762423494482,8.0,158.7,158.65,1.6]
[1762423494778,0.68,158.7,158.66,22.0597504]
[1762423494960,8.0,158.7,158.66,22.0597504]
[1762423495160,0.68,158.7,158.66,22.0597504]
[1762423495556,0.68,158.69,158.66,22.0597504]
[1762423496074,0.68,158.69,158.66,6.30278583]
[1762423496777,7.32,158.68,158.66,6.30278583]
[1762423497570,7.32,158.68,158.66,7.90278583]
[1762423497974,7.32,158.69,158.66,7.90278583]
[1762423498175,0.68,158.68,158.66,7.90278583]
[1762423498463,7.32,158.67,158.64,6.30358043]
[1762423498663,7.32,158.67,158.63,7.90388061]
[1762423498863,20.592,158.71,158.63,7.90388061]
[1762423499063,0.68,158.67,158.63,7.90388061]
[1762423499869,7.32,158.66,158.63,7.90388061]
[1762423500070,7.32,158.65,158.63,7.90388061]
[1762423500277,7.32,158.65,158.63,1.6]
[1762423500487,0.68,158.64,158.63,1.6]
[1762423500782,8.0,158.64,158.6,6.30517023]
[1762423500992,0.68,158.64,158.58,16.09479313]
[1762423501192,0.68,158.63,158.58,6.30596544]
[1762423501391,7.32,158.62,158.58,6.30596544]
[1762423501565,0.68,158.63,158.58,22.07087904]
[1762423501766,8.0,158.62,158.58,22.07087904]
[1762423501970,0.68,158.62,158.58,22.07087904]
[1762423502191,7.32,158.61,158.58,22.07087904]
[1762423502367,8.0,158.61,158.58,22.07087904]
[1762423502970,0.68,158.61,158.58,22.07087904]
[1762423503678,8.0,158.61,158.58,6.30596544]
[1762423503878,0.68,158.61,158.58,6.30596544]
[1762423504088,8.0,158.6,158.58,6.30596544]
[1762423504987,8.0,158.6,158.56,22.07344717]
[1762423505293,50.78784822,158.66,158.56,22.07344717]
[1762423505294,50.0,158.66,158.56,22.07344717]
[1762423505486,0.68,158.65,158.56,22.07344717]
[1762423505788,21.272,158.65,158.56,22.07344717]
[1762423505980,7.32,158.64,158.56,22.07344717]
[1762423506182,7.32,158.63,158.56,22.07344717]
[1762423506385,7.32,158.62,158.56,22.07344717]
[1762423506697,0.68,158.62,158.56,6.30676084]
[1762423506895,20.592,158.58,158.55,0.1]
[1762423507076,7.32,158.57,158.55,0.1]
[1762423507278,7.32,158.56,158.55,0.1]
[1762423507478,8.0,158.56,158.55,0.1]
[1762423509872,0.68,158.61,158.55,6.40715862]
[1762423510088,0.68,158.64,158.56,9.78882769]
[1762423510493,7.34,158.63,158.56,9.78882769]
[1762423510693,7.34,158.62,158.56,9.78882769]
[1762423510887,0.68,158.66,158.56,9.78882769]
[1762423510888,7.34,158.64,158.56,9.78882769]
[1762423511269,7.34,158.64,158.56,22.47346046]
[1762423511473,7.34,158.64,158.57,22.07227092]
[1762423512087,0.68,158.66,158.6,20.592]
[1762423512398,7.34,158.65,158.57,53.60408652]
[1762423512795,8.02,158.65,158.57,53.60408652]
[1762423512973,8.02,158.65,158.58,9.78882769]
[1762423513588,8.02,158.65,158.59,22.06948735]
[1762423513798,8.02,158.65,158.59,53.59732643]
[1762423515399,0.68,158.64,158.59,22.06948735]
[1762423515582,0.68,158.64,158.56,22.07273918]
[1762423515781,7.34,158.63,158.56,23.67273918]
[1762423515980,0.68,158.64,158.56,22.07273918]
[1762423516185,8.02,158.63,158.56,22.07273918]
[1762423516395,0.68,158.63,158.56,22.07273918]
[1762423516593,8.02,158.62,158.56,22.07273918]
[1762423516792,7.34,158.61,158.56,22.07273918]
[1762423516996,8.02,158.61,158.56,22.07273918]
[1762423517682,0.68,158.61,158.56,22.07273918]
[1762423517882,8.02,158.61,158.56,22.07273918]
[1762423518103,0.68,158.61,158.56,22.07273918]
[1762423519001,8.02,158.61,158.56,23.67273918]
[1762423519186,0.68,158.61,158.56,23.67273918]
[1762423519507,0.68,158.6,158.56,23.67273918]
[1762423522686,8.02,158.6,158.56,23.67273918]
[1762423523093,0.69,158.59,158.56,23.67273918]
[1762423523500,7.34,158.6,158.56,7.90676084]
[1762423523988,8.03,158.6,158.56,23.67366295]
[1762423524591,0.69,158.59,158.56,23.67366295]
[1762423525618,0.69,158.62,158.56,23.67366295]
[1762423525790,7.34,158.62,158.56,23.67366295]
[1762423525993,0.69,158.63,158.56,23.67366295]
[1762423526191,8.03,158.63,158.56,55.20746718]
[1762423526615,0.69,158.62,158.56,55.20746718]
[1762423527413,0.69,158.62,158.56,23.67366295]
[1762423527914,8.03,158.62,158.56,23.67366295]
[1762423528115,0.69,158.62,158.56,23.67366295]
[1762423528306,0.69,158.61,158.56,23.67366295]
[1762423528809,0.69,158.61,158.56,7.90676084]
[1762423529007,7.34,158.6,158.55,6.40702088]
[1762423529195,0.69,158.61,158.55,6.40702088]
[1762423529391,8.03,158.6,158.55,6.40702088]
[1762423529813,0.69,158.59,158.55,6.40702088]
[1762423530308,7.34,158.58,158.55,6.40702088]
[1762423530519,0.69,158.59,158.55,6.40702088]
[1762423530906,7.34,158.58,158.55,6.40702088]
[1762423531217,7.34,158.57,158.55,0.1]
[1762423531603,8.03,158.56,158.55,0.1]
[1762423531799,8.03,158.56,158.55,6.40715862]
[1762423531995,0.69,158.56,158.55,6.40715862]
[1762423532195,8.03,158.56,158.55,6.40715862]
[1762423532396,8.03,158.56,158.55,0.1]
[1762423533003,0.69,158.56,158.55,0.1]
[1762423533820,8.03,158.56,158.55,0.1]
[1762423534715,0.69,158.56,158.55,0.1]
[1762423535020,8.03,158.56,158.55,6.40715862]
[1762423535515,0.69,158.56,158.55,0.1]
[1762423535909,8.03,158.56,158.55,0.1]
[1762423536109,8.01,158.56,158.55,0.1]
[1762423536499,0.69,158.56,158.55,0.1]
[1762423537200,8.01,158.56,158.55,0.1]
[1762423538108,0.69,158.56,158.55,0.1]
[1762423538708,8.01,158.56,158.55,0.1]
[1762423538913,0.69,158.56,158.55,0.1]
[1762423539106,8.01,158.56,158.55,0.1]
[1762423539920,0.69,158.56,158.55,0.1]
[1762423540123,8.01,158.56,158.55,0.1]
[1762423540421,7.32,158.56,158.55,6.40715862]
[1762423540937,0.66,158.56,158.55,6.40715862]
[1762423541336,7.98,158.56,158.55,0.1]
[1762423541511,0.66,158.56,158.55,0.1]
[1762423541705,7.98,158.56,158.55,0.1]
[1762423541906,0.66,158.56,158.55,0.1]
[1762423542104,7.98,158.56,158.55,0.1]
[1762423542426,0.66,158.56,158.55,0.1]
[1762423542608,7.98,158.56,158.55,0.1]
[1762423543033,0.66,158.56,158.55,0.1]
[1762423543205,7.98,158.56,158.55,0.1]
[1762423543629,0.66,158.56,158.55,0.1]
[1762423543945,7.98,158.56,158.55,0.1]
[1762423545342,0.66,158.56,158.53,0.1]
[1762423545519,7.98,158.55,158.53,0.1]
[1762423545825,7.32,158.54,158.53,0.1]
[1762423546026,7.98,158.54,158.53,0.1]
[1762423546909,7.98,158.54,158.53,6.40795433]
[1762423547327,0.66,158.54,158.53,6.40795433]
[1762423547525,0.66,158.54,158.53,0.1]
[1762423547716,7.98,158.54,158.53,0.1]
[1762423548510,7.98,158.54,158.53,6.40795433]
[1762423549417,7.32,158.54,158.53,6.40795433]
[1762423549622,0.66,158.56,158.53,6.40795433]
[1762423549819,7.32,158.55,158.53,22.17784015]
[1762423550212,7.98,158.55,158.53,22.17784015]
[1762423550607,0.66,158.55,158.53,22.17784015]
[1762423550808,7.32,158.54,158.53,22.17784015]
[1762423551521,7.98,158.54,158.53,22.17784015]
[1762423553130,7.98,158.54,158.53,6.40795433]
[1762423553724,7.32,158.54,158.53,6.40795433]
[1762423554104,0.68,158.56,158.53,6.40795433]
[1762423554310,7.32,158.55,158.53,6.40795433]
[1762423554813,0.68,158.55,158.53,6.40795433]
[1762423555018,7.32,158.54,158.53,6.40795433]
[1762423556215,0.68,158.55,158.53,6.40795433]
[1762423556408,7.32,158.54,158.53,6.40795433]
[1762423557829,0.68,158.55,158.53,6.40795433]
[1762423558212,7.32,158.54,158.53,6.40795433]
[1762423558407,0.68,158.55,158.53,6.40795433]
[1762423558613,7.32,158.54,158.53,6.40795433]
[1762423558831,0.68,158.55,158.53,6.40795433]
[1762423559033,8.0,158.54,158.53,6.40795433]
[1762423559235,7.32,158.54,158.53,6.40795433]
[1762423559630,0.68,158.55,158.53,6.40795433]
[1762423559930,7.32,158.54,158.53,6.40795433]
[1762423561667,0.68,158.61,158.54,9.78882769]
[1762423561854,0.68,158.6,158.55,5.34463277]
[1762423562338,0.68,158.6,158.56,6.30676084]
[1762423562519,7.32,158.59,158.56,6.30676084]
[1762423562721,7.32,158.58,158.56,6.30676084]
[1762423563227,8.0,158.57,158.55,11.6517152]
[1762423563415,0.68,158.57,158.55,11.6517152]
[1762423563615,7.32,158.57,158.55,11.6517152]
[1762423563824,0.68,158.56,158.55,5.34463277]
[1762423564133,7.32,158.56,158.55,11.65179139]
[1762423564515,0.68,158.57,158.55,11.65179139]
[1762423565125,7.32,158.56,158.55,11.65179139]
[1762423565322,0.68,158.56,158.55,5.34463277]
[1762423565537,0.68,158.56,158.53,15.86929147]
[1762423565538,8.0,158.56,158.53,0.1]
[1762423566045,21.272,158.55,158.53,0.1]
[1762423566254,7.32,158.54,158.53,0.1]
[1762423566435,8.0,158.54,158.53,0.1]
[1762423567332,0.68,158.54,158.53,0.1]
[1762423567525,0.68,158.54,158.44,9.98882769]
[1762423567836,27.912,158.53,158.44,25.76732504]
[1762423568036,27.912,158.53,158.45,0.2]
[1762423568236,0.68,158.52,158.45,5.0101161]
[1762423568447,0.68,158.52,158.47,6.31034265]
[1762423568830,7.32,158.51,158.47,27.09631537]
[1762423569128,0.68,158.52,158.48,4.8101161]
[1762423569337,7.32,158.52,158.48,5.0101161]
[1762423570532,20.592,158.55,158.49,22.08341219]
[1762423570849,0.68,158.53,158.49,22.08341219]
[1762423571742,7.32,158.52,158.49,22.08341219]
[1762423572257,8.0,158.52,158.49,22.08341219]
[1762423572632,7.32,158.51,158.49,22.08341219]
[1762423572833,8.0,158.51,158.49,22.08341219]
[1762423573034,0.68,158.5,158.48,11.11994351]
[1762423573538,7.32,158.49,158.48,11.11994351]
[1762423573958,0.68,158.5,158.48,11.11994351]
[1762423574155,8.0,158.5,158.48,11.11994351]
[1762423574663,20.592,158.47,158.4,6.31313131]
[1762423575043,0.68,158.46,158.4,6.31313131]
[1762423575244,7.34,158.45,158.38,15.55510019]
[1762423575443,0.68,158.46,158.38,15.55510019]
[1762423575644,0.68,158.45,158.38,15.55510019]
[1762423576038,7.34,158.44,158.38,0.66]
[1762423576236,128.72099198,158.43,158.37,0.1]
[1762423576541,20.592,158.38,158.37,0.1]
[1762423576848,21.272,158.38,158.37,0.1]
[1762423577048,50.0,158.35,158.32,1.41981255]
[1762423577271,20.592,158.34,158.32,1.41981255]
[1762423577455,0.68,158.4,158.32,15.79080343]
[1762423577764,20.592,158.43,158.33,9.78882769]
[1762423577939,0.68,158.44,158.33,9.78882769]
[1762423578134,20.592,158.43,158.32,15.79080343]
[1762423578341,21.272,158.42,158.33,9.78882769]
[1762423578641,21.272,158.42,158.35,22.10293652]
[1762423578857,20.592,158.42,158.35,22.10293652]
[1762423579173,0.68,158.41,158.35,22.10293652]
[1762423579472,21.272,158.44,158.36,10.44882769]
[1762423579642,21.272,158.44,158.36,17.80882769]
[1762423579963,0.68,158.44,158.37,0.66]
[1762423580273,0.68,158.43,158.36,9.78882769]
[1762423580474,0.68,158.43,158.37,8.02]
[1762423580642,0.68,158.44,158.38,22.09874983]
[1762423580963,0.68,158.46,158.38,22.75874983]
[1762423581275,0.68,158.45,158.39,0.66]
[1762423581444,0.68,158.45,158.39,8.02]
[1762423581645,0.68,158.45,158.39,0.66]
[1762423581855,0.68,158.45,158.39,8.02]
[1762423582060,20.592,158.46,158.39,8.02]
[1762423582061,20.592,158.46,158.39,2.26]
[1762423582246,21.252,158.46,158.4,8.03]
[1762423582445,21.252,158.46,158.4,0.67]
[1762423582646,21.252,158.46,158.41,22.09456473]
[1762423583056,0.66,158.48,158.42,0.67]
[1762423583454,21.252,158.48,158.42,0.67]
[1762423583657,0.66,158.48,158.42,0.67]
[1762423584140,50.0,158.53,158.42,0.67]
[1762423584141,0.66,158.51,158.43,7.36]
[1762423584343,0.66,158.52,158.43,9.78882769]
[1762423584545,20.592,158.51,158.44,8.03]
[1762423584743,0.66,158.52,158.45,22.08898706]
[1762423585051,0.66,158.51,158.45,22.75898706]
[1762423585259,0.66,158.51,158.45,30.11898706]
[1762423585260,21.252,158.51,158.45,30.11898706]
[1762423585579,0.66,158.51,158.45,30.11898706]
[1762423585870,21.252,158.51,158.45,30.11898706]
[1762423586080,21.252,158.51,158.45,22.75898706]
[1762423586278,0.66,158.5,158.45,22.75898706]
[1762423586442,20.592,158.51,158.45,22.75898706]
[1762423586643,21.252,158.51,158.45,30.11898706]
[1762423586862,0.66,158.5,158.45,22.75898706]
[1762423587067,0.66,158.5,158.45,14.34113916]
[1762423587238,0.66,158.5,158.46,0.67]
[1762423587447,0.66,158.53,158.46,0.67]
[1762423587748,21.252,158.53,158.46,0.67]
[1762423588151,21.252,158.53,158.47,7.36]
[1762423588472,21.252,158.53,158.46,0.67]
[1762423588677,0.66,158.52,158.45,22.08898706]
[1762423588887,0.66,158.52,158.45,15.7778479]
[1762423589247,0.66,158.52,158.45,23.1378479]
[1762423589457,0.66,158.52,158.45,15.7778479]
[1762423589664,0.66,158.52,158.45,23.1378479]
[1762423589861,0.66,158.52,158.45,23.8078479]
[1762423590062,0.66,158.52,158.45,16.4478479]
[1762423590269,0.66,158.52,158.45,23.8078479]
[1762423590478,0.66,158.52,158.45,16.4478479]
[1762423590844,0.66,158.52,158.46,0.67]
[1762423592573,21.252,158.52,158.46,0.67]
[1762423592759,21.252,158.52,158.46,8.03]
[1762423592954,20.592,158.53,158.47,6.31034265]
[1762423593161,21.252,158.53,158.47,6.31034265]
[1762423593356,0.66,158.52,158.47,6.31034265]
[1762423593750,0.66,158.52,158.47,22.08619927]
[1762423593945,0.66,158.52,158.47,6.98034265]
[1762423594249,0.66,158.52,158.46,6.31064891]
[1762423594459,8.02,158.52,158.46,6.31064891]
[1762423594869,0.66,158.51,158.45,6.31110969]
[1762423595055,50.66,158.51,158.41,1.6]
[1762423595247,20.592,158.48,158.42,6.3123343]
[1762423595453,20.592,158.48,158.4,6.31278447]
[1762423595657,20.592,158.46,158.4,6.31278447]
[1762423595956,7.36,158.45,158.4,6.31278447]
[1762423596163,8.02,158.45,158.4,6.31278447]
[1762423596362,0.66,158.44,158.4,6.31278447]
[1762423596877,20.592,158.46,158.41,0.71]
[1762423597050,0.66,158.46,158.42,6.3123343]
[1762423597252,28.612,158.45,158.39,6.31340763]
[1762423597450,7.36,158.44,158.37,6.3143272]
[1762423597671,7.36,158.43,158.37,6.3143272]
[1762423597877,8.02,158.43,158.37,6.3143272]
[1762423598265,8.02,158.43,158.37,7.0243272]
[1762423598664,0.66,158.42,158.37,6.3143272]
[1762423599196,0.66,158.42,158.37,7.0243272]
[1762423599380,0.66,158.42,158.37,6.3143272]
[1762423599576,7.36,158.41,158.37,6.3143272]
[1762423600079,0.66,158.4,158.37,6.3143272]
[1762423600878,0.66,158.4,158.36,6.31461983]
[1762423602485,0.66,158.4,158.32,7.02632137]
[1762423602780,0.66,158.4,158.32,6.31632137]
[1762423603087,1.44914141,158.4,158.32,6.31632137]
[1762423603278,7.38,158.39,158.31,6.31667566]
[1762423603593,20.592,158.36,158.28,0.71]
[1762423603772,7.38,158.35,158.28,0.71]
[1762423603957,8.04,158.35,158.28,0.71]
[1762423604156,8.04,158.35,158.26,25.58484965]
[1762423604157,0.66,158.34,158.26,16.50602196]
[1762423604356,0.66,158.34,158.27,6.31830557]
[1762423606177,20.592,158.26,158.21,0.1]
[1762423606373,50.0,158.22,158.1,31.90276945]
[1762423606587,20.592,158.25,158.14,0.71]
[1762423606886,8.08,158.24,158.14,0.71]
[1762423607391,8.08,158.24,158.15,7.42]
[1762423607587,0.66,158.24,158.16,7.42]
[1762423607767,0.66,158.26,158.15,53.74644324]
[1762423608083,0.66,158.26,158.16,17.20882769]
[1762423608295,21.252,158.29,158.18,9.78882769]
[1762423608586,28.672,158.29,158.18,9.78882769]
[1762423608769,0.66,158.28,158.2,9.78882769]
[1762423608972,0.66,158.28,158.2,17.20882769]
[1762423609272,0.66,158.28,158.21,0.71]
[1762423609469,0.66,158.28,158.21,8.13]
[1762423609681,0.66,158.28,158.18,0.71]
[1762423609876,0.66,158.28,158.19,22.12529236]
[1762423610075,7.42,158.27,158.19,22.12529236]
[1762423610464,0.66,158.26,158.19,22.12529236]
[1762423611289,8.08,158.26,158.19,22.12529236]
[1762423611587,8.08,158.26,158.15,31.61555485]
[1762423611588,20.592,158.24,158.15,16.11193866]
[1762423611768,20.592,158.24,158.18,0.71]
[1762423611972,0.66,158.23,158.19,6.3215121]
[1762423612292,20.592,158.22,158.17,0.72]
[1762423612467,21.312,158.25,158.14,9.78882769]
[1762423612667,28.752,158.25,158.14,10.50882769]
[1762423612889,0.72,158.25,158.15,0.72]
[1762423613197,20.592,158.26,158.17,9.78882769]
[1762423613386,0.72,158.27,158.16,30.38082769]
[1762423613568,50.0,158.29,158.18,9.78882769]
[1762423613768,50.0,158.31,158.19,0.72]
[1762423613982,0.72,158.28,158.2,22.12389379]
[1762423614269,21.312,158.28,158.2,22.12389379]
[1762423614590,21.312,158.28,158.18,9.78882769]
[1762423614591,20.592,158.26,158.18,9.78882769]
[1762423614782,20.592,158.26,158.19,0.72]
[1762423614984,21.312,158.26,158.19,0.72]
[1762423615999,21.312,158.26,158.2,6.32111251]
[1762423616170,21.312,158.26,158.2,22.12389379]
[1762423617388,20.592,158.26,158.2,22.12389379]
[1762423617597,0.72,158.25,158.2,22.12389379]
[1762423617964,0.72,158.25,158.2,22.84389379]
[1762423618166,20.592,158.26,158.21,0.72]
[1762423618368,0.72,158.28,158.21,0.72]
[1762423618573,28.752,158.28,158.21,0.72]
[1762423618978,0.72,158.27,158.21,0.72]
[1762423619221,21.312,158.27,158.2,22.12389379]
[1762423619679,0.72,158.26,158.2,22.12389379]
[1762423619879,0.72,158.26,158.2,22.84389379]
[1762423620775,50.0,158.3,158.21,0.72]
[1762423620776,0.72,158.3,158.21,0.72]
[1762423620981,0.72,158.3,158.22,17.22882769]
[1762423621193,0.72,158.3,158.22,9.78882769]
[1762423621393,0.72,158.32,158.24,9.78882769]
[1762423621596,50.0,158.37,158.25,0.72]
[1762423621799,50.0,158.37,158.26,9.78882769]
[1762423621975,50.0,158.34,158.25,2.32]
[1762423622370,0.72,158.33,158.26,6.31871603]
[1762423622588,0.72,158.33,158.26,7.03871603]
[1762423622791,0.72,158.33,158.27,0.72]
[1762423623275,0.72,158.33,158.26,6.31871603]
[1762423623477,7.46,158.32,158.25,6.31906065]
[1762423623682,100.72,158.33,158.23,6.31961088]
[1762423623884,0.72,158.32,158.23,7.03961088]
[1762423624202,7.46,158.31,158.23,22.839396]
[1762423624383,20.592,158.3,158.23,22.839396]
[1762423624782,0.72,158.29,158.23,22.839396]
[1762423627310,0.72,158.29,158.21,6.32071297]
[1762423627511,7.44,158.28,158.21,6.32071297]
[1762423627725,50.0,158.28,158.19,6.3215121]
[1762423628019,8.16,158.27,158.19,6.3215121]
[1762423628400,0.72,158.26,158.19,22.12529236]
[1762423628908,0.72,158.26,158.2,0.72]
[1762423629297,8.16,158.26,158.2,0.72]
[1762423629500,28.752,158.26,158.2,0.72]
[1762423629714,0.72,158.25,158.2,0.72]
[1762423630610,7.44,158.26,158.21,6.32071297]
[1762423630823,21.312,158.25,158.17,0.72]
[1762423631009,21.312,158.25,158.18,0.72]
[1762423631319,28.772,158.25,158.18,0.72]
[1762423631519,21.312,158.25,158.18,0.72]
[1762423631737,28.772,158.25,158.18,0.72]
[1762423632305,0.72,158.24,158.15,6.32311097]
[1762423632530,0.72,158.24,158.16,6.32265987]
[1762423632705,0.72,158.24,158.16,7.04265987]
[1762423632898,28.052,158.25,158.17,10.50882769]
[1762423633127,20.592,158.25,158.18,9.78882769]
[1762423633327,28.072,158.25,158.18,10.50882769]